[Event "I Liga Centralne Srbije"]
[Site "Bajina Bašta, Serbia"]
[Date "2020.10.15"]
[Round "8.1"]
[White "Ivic, Velimir"]
[Black "Delchev, Aleksander"]
[Result "1-0"]
[ECO "C97"]
[WhiteElo "2548"]
[BlackElo "2548"]
[Annotator "Knez"]
[PlyCount "159"]
[EventDate "2020.??.??"]
[TimeControl "90"]

1. e4 {[%emt 0:51:06]} e5 2. Nf3 Nc6 3. Bb5 a6 4. Ba4 Nf6 5. O-O Be7 6. Re1 b5
7. Bb3 d6 8. c3 O-O 9. h3 Na5 {[%emt 0:08:18]} 10. Bc2 {[%emt 0:00:04]} c5 {
[%emt 0:00:03]} 11. d4 {[%emt 0:00:11]} Qc7 {[%emt 0:01:15]} 12. d5 {[%emt 0:
02:00]} Bd7 {[%emt 0:01:33]} 13. b3 {[%emt 0:02:16]} Nb7 {[%emt 0:08:00]} 14.
c4 {[%emt 0:06:47]} Ne8 {[%emt 0:01:19]} 15. Nc3 {[%emt 0:00:55]} b4 {[%emt 0:
01:41]} 16. Ne2 {[%emt 0:00:13]} g6 {[%emt 0:00:04]} 17. Nh2 {[%emt 0:08:01]}
Ng7 {[%emt 0:04:37]} 18. f4 {[%emt 0:01:21]} exf4 {[%emt 0:10:42]} 19. Bxf4 {
[%emt 0:01:49]} a5 {[%emt 0:07:34]} 20. Nf3 {[%emt 0:02:08]} f6 {[%emt 0:00:50]
} 21. Qd2 {[%emt 0:02:55]} Nd8 {[%emt 0:02:16]} 22. Rf1 {[%emt 0:08:55]} Nf7 {
[%emt 0:00:51]} 23. Rf2 {[%emt 0:02:11]} a4 {[%emt 0:05:04]} 24. Raf1 {[%emt 0:
00:45]} axb3 {[%emt 0:00:09]} 25. axb3 {[%emt 0:00:04]} Ne5 {[%emt 0:03:39]}
26. Nc1 {[%emt 0:05:29]} Rae8 {[%emt 0:16:07]} 27. Nd3 {[%emt 0:01:39]} Nf7 {
[%emt 0:03:56]} 28. Re1 {[%emt 0:11:04]} Bd8 {[%emt 0:01:35]} 29. Bd1 {[%emt 0:
01:12]} Bc8 {[%emt 0:00:48]} 30. Bh2 {[%emt 0:11:52]} Ne5 {[%emt 0:02:14]} 31.
Bc2 {[%emt 0:01:32]} Nf7 {[%emt 0:02:05]} 32. Kh1 {[%emt 0:01:06]} Ne5 {
[%emt 0:04:52]} 33. Rff1 {[%emt 0:04:22]} Qe7 {[%emt 0:01:20]} 34. Bd1 {
[%emt 0:08:06]} Rf7 {[%emt 0:01:17]} 35. Nf2 {[%emt 0:01:10]} Ref8 {[%emt 0:02:
39]} 36. Kg1 {[%emt 0:00:33]} Qc7 {[%emt 0:02:19]} 37. Bf4 {[%emt 0:04:14]} Nh5
{[%emt 0:01:57]} 38. Bh2 {[%emt 0:00:10]} Ng7 {[%emt 0:00:04]} 39. Nd3 {
[%emt 0:01:39]} Qe7 {[%emt 0:01:59]} 40. Bf4 {[%emt 0:00:53]} Qc7 {[%emt 0:00:
54]} 41. Nh2 {[%emt 0:00:42]} Re8 {[%emt 0:01:29]} 42. Ng4 {[%emt 0:02:37]}
Bxg4 {[%emt 0:01:37]} 43. Bxg4 {[%emt 0:03:11]} Rfe7 {[%emt 0:04:08]} 44. Nf2 {
[%emt 0:06:23]} Nf7 {[%emt 0:00:25]} 45. Bf3 {[%emt 0:01:09]} Ne5 {[%emt 0:00:
53]} 46. Bd1 {[%emt 0:00:53]} Nf7 {[%emt 0:00:23]} 47. Bc2 {[%emt 0:00:36]} Ne5
{[%emt 0:00:51]} 48. Ng4 {[%emt 0:00:24]} Nxg4 {[%emt 0:00:05]} 49. hxg4 {
[%emt 0:00:04]} Rf8 {[%emt 0:00:31]} 50. Ra1 {[%emt 0:00:50]} Qd7 {[%emt 0:00:
14]} 51. Qd1 {[%emt 0:00:33]} Ree8 {[%emt 0:00:15]} 52. Qf3 {[%emt 0:00:32]}
Be7 {[%emt 0:00:16]} 53. Ra6 {[%emt 0:00:51]} Ra8 {[%emt 0:00:07]} 54. Rfa1 {
[%emt 0:00:17]} Qb7 {[%emt 0:00:30]} 55. Rxa8 {[%emt 0:00:23]} Rxa8 56. Rf1 {
[%emt 0:00:24]} Rf8 {[%emt 0:01:13]} 57. Bh6 {[%emt 0:00:33]} Rf7 {[%emt 0:01:
05]} 58. Qh3 {[%emt 0:00:28]} Bf8 {[%emt 0:00:28]} 59. Ra1 {[%emt 0:00:39]} Ne8
{[%emt 0:00:25]} 60. Bf4 {[%emt 0:00:30]} Qc8 {[%emt 0:00:27]} 61. Qf3 {
[%emt 0:00:40]} Ng7 {[%emt 0:00:58]} 62. Qg3 {[%emt 0:00:22]} Ne8 {[%emt 0:00:
05]} 63. Bd1 {[%emt 0:00:38]} Be7 {[%emt 0:01:03]} 64. Bf3 {[%emt 0:00:11]} Qb7
{[%emt 0:00:47]} 65. Qf2 {[%emt 0:00:31]} Nc7 {[%emt 0:00:24]} 66. Qd2 {
[%emt 0:00:20]} Rf8 {[%emt 0:00:15]} 67. Re1 {[%emt 0:00:51]} Qc8 {[%emt 0:00:
27]} 68. Kf2 {[%emt 0:00:37]} Na6 {[%emt 0:00:19]} 69. g5 {[%emt 0:00:35]} fxg5
{[%emt 0:00:23]} 70. Bxg5 {[%emt 0:00:02]} Bxg5 {[%emt 0:00:59]} 71. Qxg5 {
[%emt 0:00:02]} Qd8 {[%emt 0:00:36]} 72. Qxd8 {[%emt 0:00:35]} Rxd8 {[%emt 0:
00:01]} 73. e5 {[%emt 0:00:42]} Nc7 {[%emt 0:01:06]} 74. exd6 {[%emt 0:00:45]}
Ne8 {[%emt 0:00:07]} 75. d7 {[%emt 0:00:55]} Nf6 {[%emt 0:00:24]} 76. Re6 {
[%emt 0:00:30]} Kf7 {[%emt 0:00:07]} 77. Rc6 {[%emt 0:00:37]} Nxd7 {[%emt 0:00:
04]} 78. Kg3 {[%emt 0:00:30]} Ra8 {[%emt 0:00:58]} 79. Rc7 {[%emt 0:00:25]} Ke8
{[%emt 0:00:03]} 80. d6 {[%emt 0:00:16]} 1-0

[Event "I Liga Centralne Srbije"]
[Site "Bajina Bašta, Serbia"]
[Date "2020.10.15"]
[Round "8.1"]
[White "Radovanovic, Mihajlo"]
[Black "Perunovic, Miodrag"]
[Result "1/2-1/2"]
[ECO "D26"]
[WhiteElo "2457"]
[BlackElo "2440"]
[Annotator "Knez"]
[PlyCount "66"]
[EventDate "2020.??.??"]
[TimeControl "90"]
[WhiteClock "0:03:21"]
[BlackClock "0:11:35"]

1. Nf3 {[%emt 0:00:00]} d5 {[%emt 0:00:00]} 2. d4 {[%emt 0:00:00]} Nf6 {
[%emt 0:00:00]} 3. c4 {[%emt 0:00:00]} e6 {[%emt 0:00:00]} 4. Nc3 {[%emt 0:00:
00]} dxc4 {[%emt 0:00:00]} 5. e3 {[%emt 0:00:00]} a6 {[%emt 0:00:00]} 6. Bxc4 {
[%emt 0:00:00]} b5 {[%emt 0:00:00]} 7. Bb3 {[%emt 0:00:00]} Bb7 {[%emt 0:00:00]
} 8. O-O {[%emt 0:00:00]} Nbd7 {[%emt 0:00:00]} 9. e4 {[%emt 0:00:00]} b4 {
[%emt 0:00:00]} 10. e5 {[%emt 0:00:00]} bxc3 {[%emt 0:00:00]} 11. exf6 {
[%emt 0:00:00]} cxb2 {[%emt 0:00:00]} 12. Bxb2 {[%emt 0:00:00]} Qxf6 {[%emt 0:
00:00]} 13. d5 {[%emt 0:00:00]} Qxb2 {[%emt 0:00:00]} 14. dxe6 {[%emt 0:00:00]}
fxe6 {[%emt 0:00:00]} 15. Rb1 {[%emt 0:00:00]} Qc3 {[%emt 0:00:00]} 16. Bxe6 {
[%emt 0:00:00]} O-O-O {[%emt 0:00:00]} 17. Rxb7 {[%emt 0:00:00]} Kxb7 {[%emt 0:
00:00]} 18. Bxd7 {[%emt 0:00:00]} Bc5 {[%emt 0:00:00]} 19. Qd5+ {[%emt 0:00:00]
} Ka7 {[%emt 0:00:00]} 20. Ne5 {[%emt 0:00:00]} Rxd7 {[%emt 0:00:00]} 21. Nc6+
{[%emt 0:00:00]} Ka8 {[%emt 0:00:00]} 22. Qxd7 {[%emt 0:00:00]} Qf6 {[%emt 0:
00:00]} 23. Qd5 {[%emt 0:00:00]} Qd6 {[%emt 0:00:00]} 24. Qe4 {[%emt 0:00:00]}
Rf8 {[%emt 0:00:00]} 25. Na5+ {[%emt 0:00:00]} c6 {[%emt 0:00:00]} 26. Nxc6 {
[%emt 0:00:00]} Bxf2+ {[%emt 0:00:00]} 27. Kh1 {[%emt 0:00:00]} Qf4 {[%emt 0:
00:00]} 28. Qd3 {[%emt 0:00:00]} Qa4 {[%emt 0:00:00]} 29. Ne7 {[%emt 0:00:00]}
Qb5 {[%emt 0:00:00]} 30. Qe4+ {[%emt 0:00:00]} Qb7 {[%emt 0:00:00]} 31. Nc6 {
[%emt 0:00:00]} Rc8 {[%emt 0:00:00]} 32. Rc1 {[%emt 0:00:00]} Bb6 {[%emt 0:00:
00]} 33. a4 {[%emt 0:00:00]} h6 {[%emt 0:00:00]} 1/2-1/2

[Event "I Liga Centralne Srbije"]
[Site "Bajina Bašta, Serbia"]
[Date "2020.10.15"]
[Round "8.1"]
[White "Pavlovic, Dejan S"]
[Black "Radovanovic, Nikola"]
[Result "0-1"]
[ECO "A45"]
[WhiteElo "2390"]
[BlackElo "2377"]
[Annotator "Knez"]
[PlyCount "82"]
[EventDate "2020.??.??"]
[TimeControl "90"]

1. d4 {[%emt 0:48:03]} Nf6 {[%emt 0:00:03]} 2. Bg5 {[%emt 0:00:11]} Ne4 {
[%emt 0:00:49]} 3. Bf4 {[%emt 0:00:06]} c5 {[%emt 0:00:12]} 4. f3 {[%emt 0:00:
13]} Nf6 {[%emt 0:00:08]} 5. dxc5 {[%emt 0:00:37]} b6 {[%emt 0:00:52]} 6. Nc3 {
[%emt 0:00:22]} bxc5 {[%emt 0:00:05]} 7. e4 {[%emt 0:00:16]} Nc6 {[%emt 0:00:
10]} 8. Bb5 {[%emt 0:01:31]} Bb7 {[%emt 0:00:17]} 9. Qd2 {[%emt 0:03:59]} e6 {
[%emt 0:03:42]} 10. O-O-O {[%emt 0:02:06]} Be7 {[%emt 0:13:57]} 11. Nge2 {
[%emt 0:08:02]} a6 {[%emt 0:01:33]} 12. Ba4 {[%emt 0:05:16]} O-O {[%emt 0:00:
43]} 13. Bd6 {[%emt 0:05:12]} Bxd6 {[%emt 0:02:51]} 14. Qxd6 {[%emt 0:00:06]}
Qa5 {[%emt 0:00:17]} 15. Bb3 {[%emt 0:01:07]} Rad8 {[%emt 0:09:09]} 16. a3 {
[%emt 0:06:25]} Ne8 {[%emt 0:04:38]} 17. Qg3 {[%emt 0:01:03]} Qc7 {[%emt 0:17:
33]} 18. f4 {[%emt 0:13:18]} f5 {[%emt 0:03:12]} 19. e5 {[%emt 0:13:38]} Na5 {
[%emt 0:02:49]} 20. Ba2 {[%emt 0:00:28]} Bc6 {[%emt 0:01:18]} 21. Qf2 {[%emt 0:
22:55]} Qb6 {[%emt 0:01:54]} 22. Rd2 {[%emt 0:02:08]} Rb8 {[%emt 0:00:56]} 23.
Nd1 {[%emt 0:00:34]} Nc7 {[%emt 0:02:58]} 24. Nec3 {[%emt 0:00:08]} Kh8 {
[%emt 0:12:39]} 25. Rg1 {[%emt 0:00:15]} Nb7 {[%emt 0:02:03]} 26. g4 {[%emt 0:
01:14]} fxg4 {[%emt 0:01:04]} 27. Rxg4 {[%emt 0:00:04]} Nb5 {[%emt 0:01:23]}
28. Qg3 {[%emt 0:01:10]} Nd4 {[%emt 0:02:44]} 29. Qh3 {[%emt 0:04:32]} Nf5 {
[%emt 0:04:35]} 30. Bc4 {[%emt 0:00:22]} Na5 {[%emt 0:03:11]} 31. Bd3 {[%emt 0:
00:45]} c4 {[%emt 0:00:11]} 32. Bxf5 {[%emt 0:04:08]} Rxf5 {[%emt 0:00:22]} 33.
Rh4 {[%emt 0:02:35]} h6 {[%emt 0:00:50]} 34. Qg3 {[%emt 0:00:22]} Rbf8 {
[%emt 0:02:44]} 35. Ne3 {[%emt 0:01:00]} R5f7 {[%emt 0:01:05]} 36. Rd1 {
[%emt 0:01:26]} Rb8 {[%emt 0:00:22]} 37. Kd2 {[%emt 0:00:50]} Qxb2 {[%emt 0:00:
11]} 38. Qg6 {[%emt 0:00:46]} Nb3+ {[%emt 0:01:36]} 39. Ke2 {[%emt 0:00:02]}
Qxc3 {[%emt 0:00:16]} 40. cxb3 {[%emt 0:00:09]} Rxb3 {[%emt 0:00:33]} 41. Rd2 {
[%emt 0:01:48]} Qxe3+ {[%emt 0:00:09] Rd1 [%emt 00:00:10] Qc3 [%emt 00:00:10]}
0-1

[Event "I Liga Centralne Srbije"]
[Site "Bajina Bašta, Serbia"]
[Date "2020.10.15"]
[Round "8.1"]
[White "Radovic, Janko"]
[Black "Radovanovic, Dusan"]
[Result "1-0"]
[ECO "B51"]
[WhiteElo "2433"]
[BlackElo "2326"]
[Annotator "Knez"]
[PlyCount "85"]
[EventDate "2020.??.??"]
[TimeControl "90"]
[WhiteClock "0:00:31"]
[BlackClock "0:01:08"]

1. e4 {[%emt 0:00:00]} c5 {[%emt 0:00:00]} 2. Nf3 {[%emt 0:00:00]} d6 {[%emt 0:
00:00]} 3. Bb5+ {[%emt 0:00:00]} Nd7 {[%emt 0:00:00]} 4. a4 {[%emt 0:00:00]}
Ngf6 {[%emt 0:00:00]} 5. Nc3 {[%emt 0:00:00]} e6 {[%emt 0:00:00]} 6. O-O {
[%emt 0:00:00]} Be7 {[%emt 0:00:00]} 7. Re1 {[%emt 0:00:00]} O-O {[%emt 0:00:
00]} 8. d4 {[%emt 0:00:00]} cxd4 {[%emt 0:00:00]} 9. Nxd4 {[%emt 0:00:00]} a6 {
[%emt 0:00:00]} 10. Bf1 {[%emt 0:00:00]} Qc7 {[%emt 0:00:00]} 11. a5 {[%emt 0:
00:00]} Ne5 {[%emt 0:00:00]} 12. Nb3 {[%emt 0:00:00]} Nc6 {[%emt 0:00:00]} 13.
Be3 {[%emt 0:00:00]} Nd7 {[%emt 0:00:00]} 14. Na4 {[%emt 0:00:00]} Rb8 {
[%emt 0:00:00]} 15. Qd2 {[%emt 0:00:00]} Nce5 {[%emt 0:00:00]} 16. f3 {[%emt 0:
00:00]} Kh8 {[%emt 0:00:00]} 17. Kh1 {[%emt 0:00:00]} Rg8 {[%emt 0:00:00]} 18.
f4 {[%emt 0:00:00]} Ng4 {[%emt 0:00:00]} 19. Ba7 {[%emt 0:00:00]} Ra8 {[%emt 0:
00:00]} 20. Bg1 {[%emt 0:00:00]} g5 {[%emt 0:00:00]} 21. g3 {[%emt 0:00:00]}
gxf4 {[%emt 0:00:00]} 22. gxf4 {[%emt 0:00:00]} e5 {[%emt 0:00:00]} 23. Re2 {
[%emt 0:00:00]} exf4 {[%emt 0:00:00]} 24. Qxf4 {[%emt 0:00:00]} Nde5 {[%emt 0:
00:00]} 25. Nb6 {[%emt 0:00:00]} Rb8 {[%emt 0:00:00]} 26. Nd5 {[%emt 0:00:00]}
Qd8 {[%emt 0:00:00]} 27. Nxe7 {[%emt 0:00:00]} Qxe7 {[%emt 0:00:00]} 28. Nd4 {
[%emt 0:00:00]} Qh4 {[%emt 0:00:06]} 29. Ra3 {[%emt 0:00:00]} Bd7 {[%emt 0:00:
13]} 30. Nf5 {[%emt 0:00:36]} Bxf5 {[%emt 0:00:00]} 31. Qxf5 {[%emt 0:00:00]}
Rg6 {[%emt 0:00:16]} 32. Rh3 {[%emt 0:00:00]} Qe7 {[%emt 0:00:08]} 33. Rg2 {
[%emt 0:00:12]} Rbg8 {[%emt 0:00:00]} 34. Bd4 {[%emt 0:00:00]} f6 {[%emt 0:00:
06]} 35. Qf4 {[%emt 0:00:00]} Nc6 {[%emt 0:00:07]} 36. Bb6 {[%emt 0:00:00]} Qe6
{[%emt 0:00:00]} 37. Rhg3 {[%emt 0:00:00]} Nge5 {[%emt 0:00:01]} 38. b3 {
[%emt 0:00:04]} Rxg3 {[%emt 0:00:00]} 39. Rxg3 {[%emt 0:00:00]} Rg6 {[%emt 0:
00:00]} 40. Bh3 {[%emt 0:00:00]} Qe7 {[%emt 0:00:00]} 41. Bf5 {[%emt 0:00:00]}
Rg5 {[%emt 0:00:00]} 42. Qh4 {[%emt 0:00:00]} Ng6 {[%emt 0:00:02]} 43. Bxg6 {
[%emt 0:00:00]} 1-0

[Event "I Liga Centralne Srbije"]
[Site "Bajina Bašta, Serbia"]
[Date "2020.10.15"]
[Round "8.1"]
[White "Radivojevic, Ivan"]
[Black "Radovic, Luka"]
[Result "1/2-1/2"]
[ECO "B23"]
[WhiteElo "2365"]
[BlackElo "2334"]
[Annotator "Knez"]
[PlyCount "74"]
[EventDate "2020.??.??"]
[TimeControl "90"]
[WhiteClock "0:00:45"]
[BlackClock "0:01:54"]

1. e4 {[%emt 0:00:00]} c5 {[%emt 0:00:00]} 2. Nc3 {[%emt 0:00:00]} Nc6 {
[%emt 0:00:00]} 3. Bb5 {[%emt 0:00:00]} g6 {[%emt 0:00:00]} 4. Bxc6 {[%emt 0:
00:00]} dxc6 {[%emt 0:00:00]} 5. d3 {[%emt 0:00:00]} Nf6 {[%emt 0:00:00]} 6.
Be3 {[%emt 0:00:00]} e5 {[%emt 0:00:00]} 7. h3 {[%emt 0:00:00]} Nd7 {[%emt 0:
00:00]} 8. Qd2 {[%emt 0:00:00]} h6 {[%emt 0:00:00]} 9. O-O-O {[%emt 0:00:00]}
Bg7 {[%emt 0:00:00]} 10. f4 {[%emt 0:00:00]} exf4 {[%emt 0:00:00]} 11. Bxf4 {
[%emt 0:00:00]} Ne5 {[%emt 0:00:00]} 12. Nce2 {[%emt 0:00:00]} Qe7 {[%emt 0:00:
00]} 13. Kb1 {[%emt 0:00:00]} Be6 {[%emt 0:00:00]} 14. Nf3 {[%emt 0:00:00]}
Nxf3 {[%emt 0:00:00]} 15. gxf3 {[%emt 0:00:00]} b6 {[%emt 0:00:00]} 16. Qe1 {
[%emt 0:00:00]} O-O-O {[%emt 0:00:00]} 17. Bc1 {[%emt 0:00:00]} Kb7 {[%emt 0:
00:00]} 18. Qg3 {[%emt 0:00:00]} Qd6 {[%emt 0:00:00]} 19. Bf4 {[%emt 0:00:00]}
Qe7 {[%emt 0:00:00]} 20. Bd2 {[%emt 0:00:00]} c4 {[%emt 0:00:00]} 21. Bc3 {
[%emt 0:00:00]} cxd3 {[%emt 0:00:00]} 22. cxd3 {[%emt 0:00:00]} Bxc3 {[%emt 0:
00:00]} 23. Nxc3 {[%emt 0:00:00]} Qc5 {[%emt 0:00:00]} 24. h4 {[%emt 0:00:00]}
Rd7 {[%emt 0:00:00]} 25. h5 {[%emt 0:00:00]} g5 {[%emt 0:00:00]} 26. f4 {
[%emt 0:00:00]} gxf4 {[%emt 0:00:00]} 27. Qxf4 {[%emt 0:00:00]} Qg5 {[%emt 0:
00:00]} 28. Qxg5 {[%emt 0:00:00]} hxg5 {[%emt 0:00:00]} 29. Kc2 {[%emt 0:00:00]
} f5 {[%emt 0:00:00]} 30. Rdg1 {[%emt 0:00:00]} g4 {[%emt 0:00:00]} 31. Rf1 {
[%emt 0:00:00]} g3 {[%emt 0:00:00]} 32. Rhg1 {[%emt 0:00:00]} Rxh5 {[%emt 0:00:
00]} 33. Rxg3 {[%emt 0:00:00]} Rh2+ {[%emt 0:00:00]} 34. Kb1 {[%emt 0:00:00]}
fxe4 {[%emt 0:00:00]} 35. Nxe4 {[%emt 0:00:00]} Bd5 {[%emt 0:00:00]} 36. Nc3 {
[%emt 0:00:00]} Re7 {[%emt 0:00:00]} 37. Rfg1 {[%emt 0:00:00]} Rf7 {[%emt 0:00:
45]} 1/2-1/2

[Event "I Liga Centralne Srbije"]
[Site "Bajina Bašta, Serbia"]
[Date "2020.10.15"]
[Round "8.1"]
[White "Zlatanovic, Boroljub"]
[Black "Marcetic, Nikola"]
[Result "1/2-1/2"]
[ECO "A38"]
[WhiteElo "2372"]
[BlackElo "2329"]
[Annotator "Knez"]
[PlyCount "125"]
[EventDate "2020.??.??"]
[TimeControl "90"]
[WhiteClock "0:01:29"]
[BlackClock "0:12:56"]

1. c4 {[%emt 0:00:00]} c5 {[%emt 0:00:00]} 2. g3 {[%emt 0:00:00]} Nc6 {[%emt 0:
00:00]} 3. Bg2 {[%emt 0:00:00]} g6 {[%emt 0:00:00]} 4. Nc3 {[%emt 0:00:00]} Bg7
{[%emt 0:00:00]} 5. Nf3 {[%emt 0:00:00]} d6 {[%emt 0:00:00]} 6. d3 {[%emt 0:00:
00]} a6 {[%emt 0:00:00]} 7. Bd2 {[%emt 0:00:00]} Rb8 {[%emt 0:00:00]} 8. a3 {
[%emt 0:00:00]} Nf6 {[%emt 0:00:00]} 9. O-O {[%emt 0:00:00]} O-O {[%emt 0:00:
00]} 10. Rb1 {[%emt 0:00:00]} b5 {[%emt 0:00:00]} 11. cxb5 {[%emt 0:00:00]}
axb5 {[%emt 0:00:00]} 12. b4 {[%emt 0:00:00]} cxb4 {[%emt 0:00:00]} 13. axb4 {
[%emt 0:00:00]} Bg4 {[%emt 0:00:00]} 14. h3 {[%emt 0:00:00]} Bxf3 {[%emt 0:00:
00]} 15. Bxf3 {[%emt 0:00:00]} d5 {[%emt 0:00:00]} 16. Bf4 {[%emt 0:00:00]} e5
{[%emt 0:00:00]} 17. Bg5 {[%emt 0:00:00]} Ne7 {[%emt 0:00:00]} 18. Qb3 {
[%emt 0:00:00]} d4 {[%emt 0:00:00]} 19. Bxf6 {[%emt 0:00:00]} Bxf6 {[%emt 0:00:
00]} 20. Ne4 {[%emt 0:00:00]} Nc8 {[%emt 0:00:00]} 21. Qd5 {[%emt 0:00:00]} Kg7
{[%emt 0:00:00]} 22. Nc5 {[%emt 0:00:00]} Qxd5 {[%emt 0:00:00]} 23. Bxd5 {
[%emt 0:00:00]} Rd8 {[%emt 0:00:00]} 24. Bc6 {[%emt 0:00:00]} Ne7 {[%emt 0:00:
00]} 25. Bf3 {[%emt 0:00:00]} Nd5 {[%emt 0:00:00]} 26. Bxd5 {[%emt 0:00:00]}
Rxd5 {[%emt 0:00:00]} 27. Rfc1 {[%emt 0:00:00]} Be7 {[%emt 0:00:00]} 28. Na6 {
[%emt 0:00:00]} Rb6 {[%emt 0:00:00]} 29. Ra1 {[%emt 0:00:00]} Rdd6 {[%emt 0:00:
00]} 30. Nc7 {[%emt 0:00:00]} Rd7 {[%emt 0:00:00]} 31. Ra7 {[%emt 0:00:00]} Kh6
{[%emt 0:00:00]} 32. Nxb5 {[%emt 0:00:00]} Rxa7 {[%emt 0:00:00]} 33. Nxa7 {
[%emt 0:00:00]} Bxb4 {[%emt 0:00:00]} 34. Nc6 {[%emt 0:00:00]} Bd6 {[%emt 0:00:
00]} 35. Na5 {[%emt 0:00:00]} Kg7 {[%emt 0:00:00]} 36. Nc4 {[%emt 0:00:00]} Rc6
{[%emt 0:00:00]} 37. Ra1 {[%emt 0:00:00]} Bc7 {[%emt 0:00:00]} 38. Ra7 {
[%emt 0:00:00]} e4 {[%emt 0:00:00]} 39. Kg2 {[%emt 0:00:00]} h5 {[%emt 0:00:00]
} 40. Nd2 {[%emt 0:00:00]} exd3 {[%emt 0:00:00]} 41. exd3 {[%emt 0:00:00]} Bd8
{[%emt 0:00:00]} 42. Nc4 {[%emt 0:00:00]} Rc7 {[%emt 0:00:00]} 43. Ra8 {
[%emt 0:00:00]} Rd7 {[%emt 0:00:00]} 44. Ne5 {[%emt 0:00:00]} Rd5 {[%emt 0:00:
00]} 45. f4 {[%emt 0:00:00]} Bf6 {[%emt 0:00:00]} 46. Nc4 {[%emt 0:00:00]} Bd8
{[%emt 0:00:00]} 47. Ra7 {[%emt 0:00:00]} Rc5 {[%emt 0:00:40]} 48. Rd7 {
[%emt 0:00:00]} Ba5 {[%emt 0:00:11]} 49. Kf3 {[%emt 0:00:00]} Rc7 {[%emt 0:00:
00]} 50. Rxd4 {[%emt 0:00:00]} Bc3 {[%emt 0:00:00]} 51. Rd5 {[%emt 0:00:00]}
Ra7 {[%emt 0:00:00]} 52. g4 {[%emt 0:00:00]} hxg4+ {[%emt 0:00:00]} 53. hxg4 {
[%emt 0:00:00]} Kf8 {[%emt 0:00:00]} 54. Nb6 {[%emt 0:00:00]} Ra1 {[%emt 0:00:
00]} 55. f5 {[%emt 0:00:00]} Rf1+ {[%emt 0:00:00]} 56. Ke3 {[%emt 0:00:00]}
Re1+ {[%emt 0:00:00]} 57. Kf2 {[%emt 0:00:00]} Rb1 {[%emt 0:00:00]} 58. Nc4 {
[%emt 0:00:00]} Kg7 {[%emt 0:00:00]} 59. Nd6 {[%emt 0:00:00]} Rb4 {[%emt 0:00:
00]} 60. f6+ {[%emt 0:00:00]} Kf8 {[%emt 0:00:04]} 61. Ne4 {[%emt 0:00:00]}
Bxf6 {[%emt 0:00:00]} 62. Nxf6 {[%emt 0:00:00]} Rf4+ {[%emt 0:00:00]} 63. Kg3 {
[%emt 0:00:24]} 1/2-1/2

[Event "I Liga Centralne Srbije"]
[Site "Bajina Bašta, Serbia"]
[Date "2020.10.15"]
[Round "8.3"]
[White "Dimitrov, Radoslav"]
[Black "Celik, Hasan Huseyin"]
[Result "1-0"]
[ECO "D61"]
[WhiteElo "2507"]
[BlackElo "1970"]
[Annotator "Knez"]
[PlyCount "67"]
[EventDate "2020.??.??"]
[TimeControl "90"]
[WhiteClock "0:18:59"]
[BlackClock "0:20:17"]

1. d4 {[%emt 0:00:00]} d5 {[%emt 0:00:00]} 2. c4 {[%emt 0:00:00]} c6 {[%emt 0:
00:00]} 3. Nf3 {[%emt 0:00:00]} e6 {[%emt 0:00:00]} 4. Qc2 {[%emt 0:00:00]} Nf6
{[%emt 0:00:00]} 5. Bg5 {[%emt 0:00:00]} Be7 {[%emt 0:00:00]} 6. e3 {[%emt 0:
00:00]} O-O {[%emt 0:00:00]} 7. Nc3 {[%emt 0:00:00]} Nbd7 {[%emt 0:00:00]} 8.
Rd1 {[%emt 0:00:00]} h6 {[%emt 0:00:00]} 9. Bh4 {[%emt 0:00:00]} b6 {[%emt 0:
00:00]} 10. Bd3 {[%emt 0:00:00]} Bb7 {[%emt 0:00:00]} 11. O-O {[%emt 0:00:00]}
Rc8 {[%emt 0:00:00]} 12. Bxf6 {[%emt 0:00:00]} Nxf6 {[%emt 0:00:00]} 13. e4 {
[%emt 0:00:00]} dxe4 {[%emt 0:00:00]} 14. Nxe4 {[%emt 0:00:00]} Qc7 {[%emt 0:
00:00]} 15. c5 {[%emt 0:00:00]} Rfd8 {[%emt 0:00:00]} 16. b4 {[%emt 0:00:00]}
Nxe4 {[%emt 0:00:00]} 17. Bxe4 {[%emt 0:00:00]} a5 {[%emt 0:00:00]} 18. a3 {
[%emt 0:00:00]} axb4 {[%emt 0:00:00]} 19. axb4 {[%emt 0:00:00]} bxc5 {[%emt 0:
00:00]} 20. dxc5 {[%emt 0:00:00]} Ba6 {[%emt 0:00:00]} 21. Rxd8+ {[%emt 0:00:
00]} Rxd8 {[%emt 0:00:00]} 22. Rd1 {[%emt 0:00:00]} Rb8 {[%emt 0:00:00]} 23.
Ra1 {[%emt 0:00:00]} Bb5 {[%emt 0:00:00]} 24. Nd4 {[%emt 0:00:00]} Qe5 {
[%emt 0:00:00]} 25. Rd1 {[%emt 0:00:00]} Qc7 {[%emt 0:00:00]} 26. g3 {[%emt 0:
00:00]} Bf8 {[%emt 0:00:00]} 27. Rd2 {[%emt 0:00:00]} Qe5 {[%emt 0:00:00]} 28.
Nxb5 {[%emt 0:00:00]} Rxb5 {[%emt 0:00:00]} 29. Rd8 {[%emt 0:00:00]} g5 {
[%emt 0:00:00]} 30. Qc4 {[%emt 0:00:00]} Qa1+ {[%emt 0:00:00]} 31. Kg2 {
[%emt 0:00:00]} Qb2 {[%emt 0:00:00]} 32. Bc2 {[%emt 0:00:00]} Rxb4 {[%emt 0:00:
00]} 33. Qd3 {[%emt 0:00:00]} Qg7 {[%emt 0:00:00]} 34. Rxf8+ {[%emt 0:00:00]}
1-0

[Event "I Liga Centralne Srbije"]
[Site "Bajina Bašta, Serbia"]
[Date "2020.10.15"]
[Round "8.3"]
[White "Radovanovic, Jovica"]
[Black "Gavrilovic, Leonardo"]
[Result "1-0"]
[ECO "E13"]
[WhiteElo "2303"]
[BlackElo "2246"]
[Annotator "Knez"]
[PlyCount "85"]
[EventDate "2020.??.??"]
[TimeControl "90"]

1. d4 {[%emt 0:48:44]} Nf6 2. c4 e6 3. Nc3 Bb4 4. Nf3 b6 5. Bg5 Bb7 6. e3 h6 {
[%emt 0:00:35]} 7. Bh4 {[%emt 0:00:07]} O-O {[%emt 0:00:21]} 8. Bd3 {[%emt 0:
01:33]} c5 {[%emt 0:01:08]} 9. O-O {[%emt 0:02:00]} cxd4 {[%emt 0:04:56]} 10.
exd4 {[%emt 0:00:07]} Bxc3 {[%emt 0:02:13]} 11. bxc3 {[%emt 0:00:08]} d6 {
[%emt 0:00:17]} 12. Re1 {[%emt 0:06:17]} Nbd7 {[%emt 0:00:13]} 13. Nd2 {
[%emt 0:02:43]} Qc7 {[%emt 0:00:42]} 14. a4 {[%emt 0:01:43]} d5 {[%emt 0:05:55]
} 15. Bg3 {[%emt 0:06:56]} Qc6 {[%emt 0:00:32]} 16. f3 {[%emt 0:07:11]} a5 {
[%emt 0:02:29]} 17. Rc1 {[%emt 0:06:25]} dxc4 {[%emt 0:10:16]} 18. Bxc4 {
[%emt 0:02:30]} Ba6 {[%emt 0:01:14]} 19. Bb3 {[%emt 0:04:00]} Nh5 {[%emt 0:01:
06]} 20. Ne4 {[%emt 0:03:08]} Nxg3 {[%emt 0:01:27]} 21. hxg3 {[%emt 0:00:04]}
Bc4 {[%emt 0:01:52]} 22. g4 {[%emt 0:01:28]} Rfd8 {[%emt 0:07:32]} 23. Qc2 {
[%emt 0:03:28]} Nf8 {[%emt 0:01:46]} 24. Bxc4 {[%emt 0:01:39]} Qxc4 {[%emt 0:
00:10]} 25. Nd2 {[%emt 0:04:09]} Qc7 {[%emt 0:01:02]} 26. Ne4 {[%emt 0:03:25]}
Ng6 {[%emt 0:02:40]} 27. Qf2 {[%emt 0:05:39]} Nf4 {[%emt 0:02:00]} 28. Qf1 {
[%emt 0:07:59]} Rac8 {[%emt 0:03:23]} 29. Nd2 {[%emt 0:08:36]} Qc6 {[%emt 0:06:
16]} 30. Re4 {[%emt 0:00:42]} Nd5 {[%emt 0:00:45]} 31. Ree1 {[%emt 0:06:20]}
Qxa4 {[%emt 0:01:40]} 32. Qd3 {[%emt 0:00:05]} Qc6 {[%emt 0:07:24]} 33. Kh1 {
[%emt 0:00:59]} Rd7 {[%emt 0:03:22]} 34. Ne4 {[%emt 0:01:54]} Qc7 {[%emt 0:02:
21]} 35. g5 {[%emt 0:03:23]} Nf4 {[%emt 0:03:13]} 36. Qe3 {[%emt 0:01:18]} hxg5
{[%emt 0:00:24]} 37. g3 {[%emt 0:01:19]} Nd5 {[%emt 0:03:18]} 38. Qxg5 {
[%emt 0:00:27]} Qd8 {[%emt 0:03:23]} 39. Qh5 {[%emt 0:00:27]} Nf6 {[%emt 0:00:
24]} 40. Nxf6+ {[%emt 0:00:49]} Qxf6 {[%emt 0:00:15]} 41. Kg2 {[%emt 0:02:09]}
Rd5 {[%emt 0:00:44]} 42. Qh2 {[%emt 0:01:22]} Kf8 43. Qh8+ 1-0